[Event "CZE-ch U16 2020"]
[Site "Kouty nad Desnou"]
[Date "2020.03.10"]
[Round "5.8"]
[White "Nezval, Filip"]
[Black "Hosnedl, Matyas"]
[Result "1-0"]
[ECO "A57"]
[WhiteElo "1940"]
[BlackElo "1977"]
[Annotator "ChessBase"]
[PlyCount "69"]
[EventDate "2020.03.07"]
[EventCountry "CZE"]
[SourceTitle "playchess.com"]
[Source "ChessBase"]
[SourceQuality "1"]
[TimeControl "5400+30"]

1. d4 {[%emt 0:00:00]} Nf6 {[%emt 0:00:00]} 2. c4 {[%emt 0:00:00]} c5 {[%emt 0:00:00]} 3. d5 {[%emt 0:00:00]} b5 {[%emt 0:00:36]} 4. cxb5 {[%emt 0:00:00]} a6 {[%emt 0:00:13]} 5. b6 {[%emt 0:00:13]} g6 {[%emt 0:00:58]} 6. Nc3 {[%emt 0:00:08]} Bg7 {[%emt 0:00:13]} 7. e4 {[%emt 0:00:23]} d6 {[%emt 0:00:44]} 8. a4 {[%emt 0:01:47]} Qxb6 {[%emt 0:05:12]} 9. Nf3 {[%emt 0:02:15]} O-O {[%emt 0:02:08]} 10. Nd2 {[%emt 0:00:06]} Nfd7 {[%emt 0:07:05]} 11. Be2 {[%emt 0:01:48]} f5 {[%emt 0:04:32]} 12. O-O {[%emt 0:07:02]} Ne5 {[%emt 0:07:08]} 13. f4 {[%emt 0:05:53]} c4+ {[%emt 0:11:58]} 14. Kh1 {[%emt 0:00:12]} Nd3 {[%emt 0:00:08]} 15. Nxc4 {[%emt 0:03:03]} Nf2+ {[%emt 0:00:27]} 16. Rxf2 {[%emt 0:00:08]} Qxf2 {[%emt 0:00:06]} 17. Be3 {[%emt 0:00:05]} Qh4 {[%emt 0:00:18]} 18. Nb6 {[%emt 0:00:14]} Bb7 {[%emt 0:03:48]} 19. Nxa8 {[%emt 0:00:24]} Bxa8 {[%emt 0:00:05]} 20. exf5 {[%emt 0:09:41]} gxf5 {[%emt 0:00:29]} 21. Bf3 {[%emt 0:03:37]} Nd7 {[%emt 0:00:20]} 22. Qe2 {[%emt 0:07:33]} Nf6 {[%emt 0:00:59]} 23. Rd1 {[%emt 0:07:54]} Ng4 {[%emt 0:03:54]} 24. Bg1 {[%emt 0:02:29]} Qh6 {[%emt 0:01:05]} 25. g3 {[%emt 0:14:42]} Qh5 {[%emt 0:04:02]} 26. Kg2 {[%emt 0:02:00]} Qf7 {[%emt 0:01:05]} 27. Qxa6 {[%emt 0:03:19]} Rb8 {[%emt 0:03:10]} 28. Qe2 {[%emt 0:01:08]} Nf6 {[%emt 0:00:30]} 29. Rd2 {[%emt 0:01:46]} Rb4 {[%emt 0:02:36]} 30. a5 {[%emt 0:02:09]} Ne4 {[%emt 0:02:18]} 31. Nxe4 {[%emt 0:04:42]} fxe4 {[%emt 0:00:07]} 32. Bxe4 {[%emt 0:00:54]} Bxb2 {[%emt 0:03:02]} 33. Rxb2 {[%emt 0:03:24]} Rxe4 {[%emt 0:01:03]} 34. Qg4+ {[%emt 0:00:15]} Qg7 {[%emt 0:00:12]} 35. Rb8+ {[%emt 0:00:08]} 1-0

[Event "CZE-ch U16 2020"]
[Site "Kouty nad Desnou"]
[Date "2020.03.10"]
[Round "5.10"]
[White "Blaha, Marek"]
[Black "Kolar, Jan"]
[Result "1/2-1/2"]
[ECO "C47"]
[WhiteElo "1836"]
[BlackElo "1760"]
[Annotator "NA RC"]
[PlyCount "61"]
[EventDate "2020.03.07"]
[EventCountry "CZE"]
[SourceTitle "playchess.com"]
[Source "ChessBase"]
[SourceQuality "1"]
[TimeControl "5400+30"]

{[%evp 11,61,-6,0,32767,2,32767,4,32767,-6,0,0,9,0,0,22,2,27,18,25,32767,32767,32767,32767,32767,32767,21,32,20,50,51,49,44,59,46,57,48,55,2,46,6,0,-4,-1,0,-1,0,-2,-2,-4,0,0,0]} 1. e4 {[%emt 0:00:00]} e5 {[%emt 0:00:00]} 2. Nf3 {[%emt 0:00:00]} Nc6 {[%emt 0:00:00]} 3. Nc3 {[%emt 0:00:00]} Nf6 {[%emt 0:00:20]} 4. d4 {[%emt 0:00:31]} exd4 {[%emt 0:01:12]} 5. Nxd4 {[%emt 0:01:00]} Bb4 {[%emt 0:00:46]} 6. Nxc6 {[%emt 0:00:33]} bxc6 {[%emt 0:00:10]} 7. Bd3 {[%emt 0:00:12]} d5 {[%emt 0:00:44]} 8. exd5 {[%emt 0:00:29]} cxd5 {[%emt 0:00:32]} 9. O-O {[%emt 0:00:54]} O-O {[%emt 0:01:24]} 10. Bg5 {[%emt 0:01:50]} c6 {[%emt 0:00:45]} 11. Qf3 {[%emt 0:00:31]} Bd6 {[%emt 0:00:56]} 12. Rae1 {[%emt 0:00:35]} Rb8 {[%emt 0:00:44]} 13. Nd1 {[%emt 0:00:26]} h6 {[%emt 0:00:50]} 14. Bxf6 {[%emt 0:00:39]} Qxf6 {[%emt 0:00:26]} 15. Qxf6 {[%emt 0:00:07]} gxf6 {[%emt 0:00:22]} 16. b3 {[%emt 0:00:17]} Be6 {[%emt 0:00:42]} 17. Ne3 {[%emt 0:01:05]} Rfe8 {[%emt 0:01:00]} 18. Nf5 {[%emt 0:00:50]} Bxf5 {[%emt 0:00:42]} 19. Bxf5 {[%emt 0:00:03]} Rxe1 {[%emt 0:01:07]} 20. Rxe1 {[%emt 0:00:06]} Kf8 {[%emt 0:00:26]} 21. Kf1 {[%emt 0:00:50]} Re8 {[%emt 0:01:49]} 22. h3 {[%emt 0:02:21]} Re5 {[%emt 0:00:26]} 23. Rxe5 {[%emt 0:00:25]} fxe5 {[%emt 0:00:04]} 24. f3 {[%emt 0:00:17]} h5 {[%emt 0:01:16]} 25. g4 {[%emt 0:00:38]} hxg4 {[%emt 0:00:12]} 26. hxg4 {[%emt 0:00:17]} Ke7 {[%emt 0:00:25]} 27. Ke2 {[%emt 0:00:15]} Bc7 {[%emt 0:00:29]} 28. a4 {[%emt 0:00:15]} a5 {[%emt 0:00:29]} 29. Kd3 {[%emt 0:00:18]} Kd6 {[%emt 0:00:17]} 30. Bc8 {[%emt 0:00:23]} f6 $11 {[%emt 0:00:22]} 31. Bf5 {[%emt 0:00:03]} 1/2-1/2

[Event "CZE-ch U16 2020"]
[Site "Kouty nad Desnou"]
[Date "2020.03.10"]
[Round "5.11"]
[White "Janouch, Jachym Stepan"]
[Black "Habenicht, Martin"]
[Result "1-0"]
[ECO "B13"]
[WhiteElo "1888"]
[BlackElo "1970"]
[Annotator "ChessBase"]
[PlyCount "49"]
[EventDate "2020.03.07"]
[EventCountry "CZE"]
[SourceTitle "playchess.com"]
[Source "ChessBase"]
[SourceQuality "1"]
[TimeControl "5400+30"]

1. e4 {[%emt 0:03:47]} d5 {[%emt 0:00:00]} 2. exd5 {[%emt 0:00:46]} Nf6 {[%emt 0:00:00]} 3. c4 {[%emt 0:00:52]} c6 {[%emt 0:00:02]} 4. d4 {[%emt 0:01:15]} cxd5 {[%emt 0:00:17]} 5. Nc3 {[%emt 0:00:40]} Nc6 {[%emt 0:04:27]} 6. Nf3 {[%emt 0:03:07]} Bg4 {[%emt 0:00:48]} 7. cxd5 {[%emt 0:01:02]} Nxd5 {[%emt 0:01:19]} 8. Qb3 {[%emt 0:00:51]} Bxf3 {[%emt 0:07:06]} 9. gxf3 {[%emt 0:00:09]} Nb6 {[%emt 0:01:51]} 10. d5 {[%emt 0:00:25]} Nd4 {[%emt 0:01:32]} 11. Qd1 {[%emt 0:00:28]} e5 {[%emt 0:05:30]} 12. dxe6 {[%emt 0:00:19]} fxe6 {[%emt 0:16:05]} 13. Be3 {[%emt 0:05:33]} Bc5 {[%emt 0:02:43]} 14. Bxd4 {[%emt 0:06:26]} Qxd4 {[%emt 0:02:04]} 15. Bb5+ {[%emt 0:01:22]} Ke7 {[%emt 0:03:27]} 16. Qe2 {[%emt 0:01:03]} Rhf8 {[%emt 0:06:40]} 17. Rd1 {[%emt 0:01:15]} Qf4 {[%emt 0:03:22]} 18. Rd7+ {[%emt 0:02:24]} Kf6 {[%emt 0:03:59]} 19. Ne4+ {[%emt 0:08:54]} Kg6 {[%emt 0:01:06]} 20. Rg1+ {[%emt 0:02:20]} Kh6 {[%emt 0:00:22]} 21. Rg4 {[%emt 0:11:08]} Nxd7 {[%emt 0:19:09]} 22. Rxf4 {[%emt 0:01:11]} Bb4+ {[%emt 0:03:24]} 23. Kf1 {[%emt 0:01:50]} Rxf4 {[%emt 0:00:10]} 24. Bxd7 {[%emt 0:00:50]} Raf8 {[%emt 0:00:35]} 25. Qc4 {[%emt 0:02:56]} 1-0

[Event "CZE-ch U16 2020"]
[Site "Kouty nad Desnou"]
[Date "2020.03.11"]
[Round "6.7"]
[White "Volak, Simon"]
[Black "Jun, Rudolf Jr."]
[Result "1/2-1/2"]
[ECO "B33"]
[WhiteElo "1937"]
[BlackElo "2104"]
[Annotator "ChessBase"]
[PlyCount "78"]
[EventDate "2020.03.07"]
[EventCountry "CZE"]
[SourceTitle "playchess.com"]
[Source "ChessBase"]
[SourceQuality "1"]
[TimeControl "5400+30"]

1. e4 {[%emt 0:00:00]} c5 {[%emt 0:00:00]} 2. Nf3 {[%emt 0:00:00]} Nc6 {[%emt 0:00:00]} 3. d4 {[%emt 0:00:01]} cxd4 {[%emt 0:00:11]} 4. Nxd4 {[%emt 0:00:08]} Nf6 {[%emt 0:00:29]} 5. Nc3 {[%emt 0:00:33]} e5 {[%emt 0:00:13]} 6. Ndb5 {[%emt 0:00:25]} d6 {[%emt 0:00:27]} 7. Bg5 {[%emt 0:00:31]} a6 {[%emt 0:00:24]} 8. Na3 {[%emt 0:00:08]} b5 {[%emt 0:00:25]} 9. Nd5 {[%emt 0:00:24]} Be7 {[%emt 0:00:28]} 10. Bxf6 {[%emt 0:00:12]} Bxf6 {[%emt 0:00:08]} 11. c3 {[%emt 0:00:22]} Bg5 {[%emt 0:05:33]} 12. Nc2 {[%emt 0:00:50]} O-O {[%emt 0:00:46]} 13. a4 {[%emt 0:01:09]} bxa4 {[%emt 0:01:53]} 14. Rxa4 {[%emt 0:00:25]} a5 {[%emt 0:01:19]} 15. Bc4 {[%emt 0:00:55]} Bd7 {[%emt 0:00:19]} 16. Ra2 {[%emt 0:05:38]} Kh8 {[%emt 0:02:46]} 17. Nce3 {[%emt 0:03:37]} Be6 {[%emt 0:11:34]} 18. b3 {[%emt 0:11:47]} Ne7 {[%emt 0:06:39]} 19. Qd3 {[%emt 0:23:46]} f5 {[%emt 0:10:36]} 20. Nxe7 {[%emt 0:04:47]} fxe4 {[%emt 0:10:01]} 21. Qxe4 {[%emt 0:01:02]} Qxe7 {[%emt 0:00:29]} 22. O-O {[%emt 0:06:10]} Bxe3 {[%emt 0:04:15]} 23. Qxe3 {[%emt 0:02:34]} Bxc4 {[%emt 0:03:15]} 24. bxc4 {[%emt 0:00:05]} Qc7 {[%emt 0:02:55]} 25. Ra4 {[%emt 0:05:07]} Rf4 {[%emt 0:01:41]} 26. Qd3 {[%emt 0:02:04]} Raf8 {[%emt 0:03:47]} 27. Qd5 {[%emt 0:03:31]} Qb6 {[%emt 0:01:03]} 28. Ra2 {[%emt 0:04:12]} Qb3 {[%emt 0:03:27]} 29. Qxa5 {[%emt 0:06:08]} Qxc4 {[%emt 0:02:41]} 30. Qa6 {[%emt 0:02:22]} Qc5 {[%emt 0:02:31]} 31. Qa5 {[%emt 0:04:12]} Qc4 {[%emt 0:00:13]} 32. Qa6 {[%emt 0:00:15]} h6 {[%emt 0:00:32]} 33. Qxc4 {[%emt 0:01:00]} Rxc4 {[%emt 0:00:12]} 34. Rd2 {[%emt 0:00:03]} Rd8 {[%emt 0:01:09]} 35. Rfd1 {[%emt 0:01:05]} Rxc3 {[%emt 0:00:51]} 36. h3 {[%emt 0:00:10]} Rc6 {[%emt 0:00:50]} 37. Rd5 {[%emt 0:00:21]} Kg8 {[%emt 0:00:11]} 38. Rxe5 {[%emt 0:01:03]} dxe5 {[%emt 0:00:08]} 39. Rxd8+ {[%emt 0:00:07]} Kf7 {[%emt 0:00:03]} 1/2-1/2

[Event "CZE-ch U16 2020"]
[Site "Kouty nad Desnou"]
[Date "2020.03.11"]
[Round "6.10"]
[White "Kolar, Jan"]
[Black "Janouch, Jachym Stepan"]
[Result "0-1"]
[ECO "B06"]
[WhiteElo "1760"]
[BlackElo "1888"]
[Annotator "NA"]
[PlyCount "68"]
[EventDate "2020.03.07"]
[EventCountry "CZE"]
[SourceTitle "playchess.com"]
[Source "ChessBase"]
[SourceQuality "1"]
[TimeControl "5400+30"]

{[%evp 11,68,97,86,37,135,93,114,84,125,131,147,140,32767,32767,249,255,269,214,195,99,112,81,99,85,188,25,100,0,0,-87,0,37,24,0,297,-445,-447,-1018,32767,-1014,-1116,-1060,-1315,-1182,-1336,-1120,-1441,-1152,-1392,-1359,-1146,-1089,-551,-616,32767,32767,-666,-633,-637]} 1. e4 {[%emt 0:00:00]} d6 {[%emt 0:01:43]} 2. d4 {[%emt 0:00:32]} g6 {[%emt 0:00:11]} 3. Nc3 {[%emt 0:00:45]} Bg7 {[%emt 0:00:06]} 4. Be3 {[%emt 0:01:08]} a6 {[%emt 0:00:14]} 5. h4 {[%emt 0:01:13]} b5 {[%emt 0:02:15]} 6. h5 {[%emt 0:02:13] B06: Modern Defence.} Bb7 {[%emt 0:03:06] [#]} 7. hxg6 $146 {[%emt 0:03:18]} ({Predecessor:} 7. f3 Nd7 8. Qd2 c5 9. Nge2 Rc8 10. dxc5 Nxc5 11. Nd4 Nf6 12. h6 Bf8 13. Nb3 Nxb3 14. axb3 {½-½ (68) Inkiov,V (2465)-Salgado Lopez,I (2598) Haguenau 2013}) 7... fxg6 {[%emt 0:02:33]} (7... hxg6 $14 8. Rxh8 Bxh8) 8. a3 {[%emt 0:02:27]} Nd7 {[%emt 0:03:01]} 9. Nf3 {[%emt 0:04:12]} Nf8 {[%emt 0:02:57]} 10. Bd3 {[%emt 0:05:00]} Qd7 {[%emt 0:03:21]} 11. Qe2 {[%emt 0:02:11]} c6 {[%emt 0:17:53]} 12. e5 {[%emt 0:08:31]} d5 {[%emt 0:10:51]} 13. a4 {[%emt 0:06:09]} e6 {[%emt 0:04:58]} 14. Kd2 {[%emt 0:02:43]} Ne7 {[%emt 0:07:53]} 15. g4 {[%emt 0:02:28]} (15. axb5 $18 {and White stays clearly on top.} cxb5 16. Na2) 15... b4 {[%emt 0:03:21]} 16. Na2 {[%emt 0:02:50]} c5 {[%emt 0:00:36]} 17. dxc5 {[%emt 0:01:25]} Nc6 {[%emt 0:00:33]} (17... d4 $16 18. Bg5 (18. Bxd4 Rd8 $16) 18... Qd5) 18. Bf4 {[%emt 0:02:13]} (18. c3 $18) 18... Qe7 {[%emt 0:01:42]} (18... Qf7 $14 19. Qe3 d4 20. Nxd4 Nxd4 21. Qxd4 Nd7) 19. Nc1 {[%emt 0:02:41]} (19. Qe3 $16) 19... Nd7 $1 {[%emt 0:01:24]} 20. Nb3 {[%emt 0:01:26]} (20. Rxh7 $1 $11 {keeps the balance.} O-O 21. Bg5) 20... Nxc5 {[%emt 0:03:21]} (20... O-O $15 21. Bg5 Qf7) 21. Nxc5 {[%emt 0:01:06]} Qxc5 {[%emt 0:00:32]} 22. Rxh7 {[%emt 0:00:48]} (22. Be3 $14 Qe7 23. Bg5) 22... O-O $2 {[%emt 0:04:53] [#]} (22... Rxh7 $11 23. Bxg6+ {[%mdl 64] Double Attack} Kd7 24. Bxh7 Rf8) 23. Bh6 $4 {[%emt 0:03:08]} (23. Rxg7+ $1 $18 {[%mdl 512] was the only winning move.} Kxg7 24. Be3) 23... Kxh7 {[%emt 0:01:26]} 24. Ng5+ {[%emt 0:00:06]} (24. Rh1 $142 Bxh6+ 25. g5 {[%mdl 64] Pin}) 24... Kg8 {[%emt 0:01:49]} 25. Bxg7 {[%emt 0:00:38]} Rxf2 {[%emt 0:00:28]} 26. Rh1 {[%emt 0:01:07]} Rxe2+ {[%emt 0:00:29]} 27. Kxe2 {[%emt 0:00:06]} Nd4+ {[%emt 0:00:19]} 28. Kd1 {[%emt 0:00:56]} Kxg7 {[%emt 0:02:03]} 29. Rh7+ {[%emt 0:00:26]} Kg8 {[%emt 0:00:41]} 30. Rh6 {[%emt 0:00:33]} Qe7 {[%emt 0:05:20]} 31. Rxg6+ {[%emt 0:00:19]} Qg7 {[%emt 0:00:25]} 32. c3 {[%emt 0:00:09]} bxc3 {[%emt 0:00:32]} 33. bxc3 {[%emt 0:00:07] [#]} Qxg6 $1 {[%emt 0:01:00]} 34. Bxg6 {[%emt 0:00:05]} Nc6 $19 {[%emt 0:00:49]} 0-1